bitfinex-derivatives/quotes_SOLF0:USTF0_20250817
["timestamp","ask_amount","ask_price","bid_price","bid_amount"]
[1755473206973,2.85,191.71,191.66,2.62335854]
[1755473207277,3.78266044,191.7,191.66,0.03335854]
[1755473207466,2.85,191.68,191.66,0.03335854]
[1755473207872,2.85,191.68,191.67,2.59]
[1755473209179,2.85,191.68,191.66,0.03335854]
[1755473209378,2.85,191.68,191.66,2.62335854]
[1755473211275,3.78493549,191.67,191.66,2.62335854]
[1755473211475,6.69493549,191.67,191.66,2.62335854]
[1755473212181,2.91,191.67,191.66,2.62335854]
[1755473212777,2.08997449,191.74,191.67,2.59]
[1755473213076,2.91,191.72,191.66,0.03335854]
[1755473213283,2.91,191.7,191.68,2.59]
[1755473213476,6.69580151,191.69,191.68,2.59]
[1755473213877,7.79956073,191.77,191.68,2.59]
[1755473214183,2.91,191.7,191.68,2.59]
[1755473214875,2.91,191.7,191.69,2.59]
[1755473215174,6.69607995,191.7,191.69,2.59]
[1755473215675,3.78607995,191.7,191.67,0.03502841]
[1755473215872,2.91,191.69,191.67,2.62502841]
[1755473216080,2.91,191.69,191.67,0.03502841]
[1755473216280,2.91,191.69,191.67,2.62502841]
[1755473217381,5.70958624,191.76,191.67,2.62502841]
[1755473217585,2.91,191.68,191.67,2.62502841]
[1755473217884,2.91,191.68,191.67,0.03502841]
[1755473218486,2.91,191.68,191.67,2.62502841]
[1755473220792,2.91,191.76,191.67,2.62502841]
[1755473221001,2.91,191.74,191.69,5.2133]
[1755473221201,6.6948736,191.73,191.69,5.2133]
[1755473221404,2.91,191.72,191.7,2.59]
[1755473222293,4.24985719,191.78,191.71,1.33985719]
[1755473222496,2.91,191.76,191.73,3.92985719]
[1755473222700,3.78432618,191.75,191.73,3.92985719]
[1755473223002,2.91,191.74,191.73,3.9640916]
[1755473223999,2.91,191.74,191.73,2.62423441]
[1755473226191,129.48,191.8,191.73,0.03423441]
[1755473226397,2.91,191.78,191.73,2.62423441]
[1755473226807,2.91,191.78,191.75,5.2116]
[1755473227006,2.91,191.78,191.76,2.59]
[1755473227206,2.91,191.86,191.76,2.59]
[1755473227397,5.003264,191.84,191.74,2.59]
[1755473227599,2.91,191.82,191.74,2.59]
[1755473227804,2.91,191.8,191.74,7.802]
[1755473228000,2.91,191.8,191.77,0.03322157]
[1755473229700,2.91,191.83,191.77,0.03322157]
[1755473229901,2.91,191.81,191.78,2.59]
[1755473231204,2.91,191.81,191.77,2.62322157]
[1755473231404,2.91,191.81,191.77,0.03322157]
[1755473232404,2.91,191.85,191.77,2.61322157]
[1755473232613,2.91,191.83,191.77,2.61322157]
[1755473232906,2.91,191.81,191.78,2.58]
[1755473233509,2.093264,191.86,191.77,0.03322157]
[1755473233710,3.76935329,191.85,191.78,2.58]
[1755473233910,6.67935329,191.84,191.78,2.58]
[1755473234213,2.91,191.82,191.78,2.58]
[1755473234611,2.91,191.82,191.77,0.03322157]
[1755473234814,2.91,191.82,191.78,2.58]
[1755473235015,2.91,191.81,191.78,2.58]
[1755473235502,2.91,191.86,191.79,2.58]
[1755473235701,129.44,191.87,191.77,2.12648557]
[1755473235702,2.91,191.84,191.77,2.12648557]
[1755473235914,2.91,191.84,191.8,2.58]
[1755473236502,2.91,191.84,191.79,0.03700834]
[1755473236707,2.91,191.84,191.79,2.61700834]
[1755473237013,2.91,191.84,191.8,2.58]
[1755473237411,2.91,191.84,191.79,0.03700834]
[1755473237613,2.91,191.84,191.79,2.61700834]
[1755473238813,2.91,191.84,191.8,2.58]
[1755473243316,2.91,191.84,191.81,2.58]
[1755473244314,2.91,191.84,191.8,2.58]
[1755473245717,2.91,191.84,191.79,0.03700834]
[1755473245914,2.91,191.84,191.81,2.58]
[1755473246818,2.91,191.84,191.82,2.58]
[1755473247819,3.01,191.89,191.82,2.58]
[1755473248023,2.093264,191.91,191.82,2.58]
[1755473248024,3.75945756,191.88,191.82,2.58]
[1755473248316,3.01,191.87,191.83,2.58]
[1755473248619,3.01,191.87,191.83,2.61410582]
[1755473249215,3.01,191.86,191.83,2.61410582]
[1755473249822,3.01,191.85,191.83,2.61410582]
[1755473250020,3.01,191.85,191.84,2.58]
[1755473250515,3.01,191.85,191.83,0.03410582]
[1755473250723,3.01,191.88,191.83,0.03410582]
[1755473252725,3.01,191.88,191.83,2.61410582]
[1755473254427,3.01,191.88,191.83,0.03410582]
[1755473256526,3.01,191.86,191.83,0.03410582]
[1755473256725,2.093264,191.9,191.83,0.03410582]
[1755473256923,6.7722134,191.89,191.83,2.61410582]
[1755473257120,3.01,191.87,191.84,2.58]
[1755473260031,3.01,191.87,191.83,0.03410582]
[1755473260231,3.01,191.87,191.83,2.61410582]
[1755473260631,3.01,191.87,191.83,0.03410582]
[1755473261029,3.01,191.87,191.84,2.58]
[1755473261532,3.01,191.87,191.85,2.58]
[1755473262136,3.01,191.87,191.84,2.58]
[1755473262433,3.01,191.85,191.83,0.03410582]
[1755473262630,3.01,191.84,191.83,2.61410582]
[1755473266629,3.01,191.84,191.83,0.03410582]
[1755473266834,6.77938943,191.84,191.83,0.03410582]
[1755473267028,3.01,191.84,191.83,0.03410582]
[1755473267432,6.78112116,191.84,191.83,0.03410582]
[1755473271139,6.78112116,191.84,191.83,2.62410582]
[1755473271541,6.78112116,191.84,191.83,0.03410582]
[1755473276440,6.78112116,191.84,191.83,2.62410582]
[1755473276640,3.77112116,191.84,191.83,2.62410582]
[1755473276842,2.79,191.85,191.83,2.62410582]
[1755473277238,2.79,191.91,191.83,2.62410582]
[1755473277439,3.77999789,191.9,191.83,2.62410582]
[1755473277638,2.79,191.88,191.83,2.62410582]
[1755473277937,3.77999789,191.89,191.84,2.59]
[1755473277938,2.79,191.89,191.84,2.59]
[1755473278134,6.56962604,191.88,191.84,2.59]
[1755473278436,2.79,191.87,191.84,5.2094]
[1755473278637,2.79,191.91,191.85,2.59]
[1755473278834,2.79,191.89,191.85,2.59]
[1755473279040,3.77866786,191.88,191.85,2.59]
[1755473279242,2.79,191.87,191.85,2.59]
[1755473279541,2.79,191.91,191.84,2.59]
[1755473279730,3.77823967,191.9,191.84,2.59]
[1755473279932,3.77823967,191.89,191.84,2.59]
[1755473280242,2.79,191.86,191.83,0.03410582]
[1755473280430,3.77758251,191.85,191.83,0.03410582]
[1755473280638,6.56758251,191.84,191.83,0.03410582]
[1755473288845,10.7274595,191.84,191.83,0.03410582]
[1755473289947,2.79,191.83,191.77,2.59]
[1755473290147,2.79,191.81,191.77,2.59]
[1755473290338,2.79,191.79,191.77,2.59]
[1755473290543,2.79,191.78,191.77,2.59]
[1755473294543,6.56605984,191.78,191.71,2.62]
[1755473294743,2.79,191.77,191.71,2.62]
[1755473294942,2.79,191.75,191.71,2.62]
[1755473295552,2.79,191.75,191.72,2.62]
[1755473297153,2.79,191.75,191.68,2.62]
[1755473298157,2.79,191.75,191.68,7.8338]
[1755473298350,2.79,191.75,191.69,2.62]
[1755473299956,2.79,191.75,191.7,2.62]
[1755473301955,2.79,191.75,191.69,5.2134]
[1755473302160,2.79,191.75,191.71,2.62]
[1755473302355,2.79,191.75,191.68,7.8337]
[1755473302956,2.79,191.75,191.69,2.62]
[1755473303554,2.79,191.75,191.67,7.307264]
[1755473303756,2.79,191.75,191.68,2.62]
[1755473304158,2.79,191.75,191.65,2.62]
[1755473304664,2.79,191.75,191.66,2.62]
[1755473305160,2.9,191.71,191.66,7.8341]
[1755473305354,2.9,191.71,191.67,2.62]
[1755473309770,2.9,191.7,191.67,2.62]
[1755473310868,2.9,191.69,191.67,2.62]
[1755473311868,2.9,191.69,191.68,2.62]
[1755473320283,2.9,191.69,191.68,3.96038152]
[1755473324382,0.03288095,191.72,191.68,3.96038152]
[1755473324588,2.9,191.71,191.7,1.34038152]
[1755473325088,2.9,191.71,191.68,1.34038152]
[1755473325989,2.93464569,191.71,191.68,1.34038152]
[1755473326285,2.93464569,191.71,191.68,3.96038152]
[1755473326482,2.93464569,191.71,191.69,2.62]
[1755473328287,2.93464569,191.71,191.7,3.96038152]
[1755473329293,0.03464569,191.71,191.7,3.96038152]
[1755473330187,2.81464569,191.71,191.7,3.96038152]
[1755473331596,0.03464569,191.71,191.7,3.96038152]
[1755473331803,2.81464569,191.71,191.7,3.96038152]
[1755473332089,2.81464569,191.71,191.7,1.34038152]
[1755473334394,2.81464569,191.71,191.66,7.30840194]
[1755473334698,2.81464569,191.71,191.67,2.62]
[1755473335292,2.81464569,191.71,191.68,2.62]
[1755473335489,0.03464569,191.71,191.68,2.62]
[1755473335696,0.03464569,191.71,191.7,2.62]
[1755473336289,2.81464569,191.71,191.7,2.62]
[1755473342011,2.81464569,191.71,191.69,2.62]
[1755473342300,2.81464569,191.71,191.68,9.92780194]
[1755473342604,2.81464569,191.71,191.68,7.30780194]
[1755473342804,2.81464569,191.71,191.69,2.62]
[1755473343902,2.78,191.7,191.68,7.30780194]
[1755473344298,5.70958624,191.81,191.68,2.09410194]
[1755473344501,2.09410194,192.0,191.74,2.62]
[1755473344502,2.78,191.78,191.74,2.62]
[1755473344801,5.70958624,191.84,191.74,2.62]
[1755473344802,2.78,191.76,191.74,2.62]
[1755473345303,2.78,191.76,191.73,2.09410194]
[1755473345703,2.78,191.76,191.73,0.03343342]
[1755473345998,2.78,191.74,191.73,0.03343342]
[1755473346203,6.56057767,191.74,191.73,0.03343342]
[1755473346398,2.78,191.73,191.68,2.62]
[1755473346602,2.78,191.71,191.67,2.09410194]
[1755473346799,2.78,191.71,191.67,4.71410194]
[1755473346995,2.78,191.71,191.67,4.74892846]
[1755473347200,2.78,191.71,191.68,2.62]
[1755473348899,2.78,191.7,191.69,2.62]
[1755473349095,2.78,191.79,191.69,2.62]
[1755473349301,3.78084473,191.78,191.73,2.09410194]
[1755473349600,2.78,191.76,191.74,2.62]
[1755473349800,2.78,191.76,191.73,2.09410194]
[1755473350503,2.78,191.76,191.73,2.13318309]
[1755473352302,2.78,191.83,191.73,2.13318309]
[1755473352504,2.78,191.81,191.73,4.75318309]
[1755473352704,2.78,191.79,191.73,4.75318309]
[1755473352903,3.77740021,191.78,191.73,4.75318309]
[1755473353105,2.78,191.76,191.73,4.75318309]
[1755473354395,2.78,191.83,191.74,2.62]
[1755473354694,2.78,191.81,191.74,2.62]
[1755473355008,2.78,191.79,191.74,7.8321]
[1755473355202,3.77653453,191.78,191.76,0.03454659]
[1755473355402,2.78,191.77,191.76,0.03454659]
[1755473368715,6.55295855,191.77,191.76,0.03454659]
[1755473377523,6.83295855,191.77,191.76,2.64454659]
[1755473377924,6.83295855,191.77,191.76,0.03454659]
[1755473383934,11.02042601,191.77,191.76,0.03454659]
[1755473384134,3.06,191.76,191.7,2.61]
[1755473384334,3.06,191.74,191.69,2.61]
[1755473385830,3.06,191.74,191.7,2.61]
[1755473387836,3.06,191.74,191.68,5.2138]
[1755473388134,3.06,191.74,191.71,2.61]
[1755473393127,3.06,191.74,191.67,77.20829888]
[1755473393332,3.06,191.74,191.69,2.61]
[1755473393533,3.06,191.74,191.67,77.20829888]
[1755473393727,3.06,191.74,191.68,2.61]
[1755473395540,3.06,191.74,191.68,7.8238]
[1755473395739,3.06,191.74,191.69,2.61]
[1755473399936,2.09410194,191.8,191.7,2.61]
[1755473400236,7.93098143,191.79,191.7,2.61]
[1755473400440,3.02,191.77,191.7,2.61]
[1755473400643,3.02,191.75,191.7,2.61]
[1755473400834,3.77352767,191.74,191.7,2.61]
[1755473401139,6.79367895,191.73,191.69,2.61]
[1755473401345,3.02,191.72,191.68,2.61]
[1755473401734,3.02,191.7,191.65,2.61]
[1755473402342,3.02,191.7,191.65,3.95089757]
[1755473403437,3.02,191.7,191.65,2.61]
[1755473403739,1.34089757,191.68,191.62,3.95089757]
[1755473403936,3.77092553,191.67,191.62,3.95089757]
[1755473404132,3.02,191.66,191.62,3.95089757]
[1755473404337,3.02,191.66,191.62,2.61]
[1755473405038,3.02,191.66,191.63,2.61]
[1755473405243,3.02,191.66,191.61,2.61]
[1755473406947,3.02,191.66,191.62,2.61]
[1755473408647,3.02,191.66,191.61,2.61]
[1755473409146,1.92121331,191.73,191.62,1.92121331]
[1755473409147,3.02,191.72,191.62,1.92121331]
[1755473409347,3.02,191.7,191.63,2.61]
[1755473409544,3.02,191.7,191.65,1.92121331]
[1755473409747,3.02,191.78,191.66,2.61]
[1755473409949,1.92121331,191.79,191.66,2.61]
[1755473409950,3.02,191.76,191.66,2.61]
[1755473410141,3.02,191.74,191.66,2.61]
[1755473410336,3.76551564,191.73,191.66,2.61]
[1755473410540,3.02,191.72,191.66,2.61]
[1755473411243,3.02,191.72,191.65,2.61]
[1755473411439,3.76597996,191.71,191.62,128.82]
[1755473411644,3.02,191.69,191.63,2.61]
[1755473416252,3.02,191.75,191.65,2.61]
[1755473416451,3.02,191.73,191.65,2.61]
[1755473416851,3.77738293,191.72,191.65,2.61]
[1755473417051,3.02,191.71,191.65,2.61]
[1755473417256,3.02,191.71,191.65,7.8246]
[1755473417454,3.02,191.75,191.66,2.61]
[1755473417750,3.02,191.73,191.68,2.61]
[1755473419358,2.89,191.72,191.68,2.61]
[1755473420055,2.89,191.72,191.68,4.53121331]
[1755473420256,2.89,191.72,191.7,2.61]
[1755473420653,2.89,191.72,191.69,5.2136]
[1755473420654,2.89,191.8,191.72,2.61]
[1755473420853,2.89,191.78,191.72,2.61]
[1755473421047,1.92121331,191.83,191.71,1.92121331]
[1755473421048,3.77676517,191.77,191.71,7.13421331]
[1755473421259,2.89,191.76,191.72,2.61]
[1755473421757,2.89,191.76,191.71,4.53121331]
[1755473422157,2.89,191.76,191.69,2.61]
[1755473422561,3.77700052,191.75,191.68,1.92121331]
[1755473422752,3.77698203,191.74,191.68,1.92121331]
[1755473423054,2.89,191.73,191.68,4.53121331]
[1755473423257,2.89,191.73,191.68,2.61]
[1755473423656,2.89,191.73,191.67,2.61]
[1755473424561,2.89,191.73,191.67,7.824]
[1755473424758,2.89,191.73,191.68,2.61]
[1755473425160,2.89,191.73,191.66,1.92121331]
[1755473425161,2.89,191.72,191.69,5.2136]
[1755473425362,2.89,191.79,191.7,2.61]
[1755473425565,2.89,191.77,191.7,2.61]
[1755473425767,2.89,191.75,191.7,2.61]
[1755473426065,2.89,191.75,191.71,2.61]
[1755473427566,2.89,191.75,191.69,1.92121331]
[1755473427866,2.89,191.75,191.69,4.53121331]
[1755473428066,2.89,191.75,191.69,1.92121331]
[1755473428262,3.77936466,191.74,191.69,1.92121331]
[1755473428468,2.89,191.73,191.71,2.61]
[1755473429358,2.89,191.73,191.69,2.61]
[1755473430367,2.89,191.73,191.7,2.61]
[1755473430562,2.89,191.73,191.71,2.62]
[1755473430962,2.89,191.73,191.69,2.62]
[1755473431163,2.89,191.73,191.7,2.62]
[1755473433864,2.89,191.73,191.71,2.62]
[1755473434167,2.89,191.73,191.68,5.2138]
[1755473434368,2.89,191.73,191.7,2.62]
[1755473436971,2.89,191.73,191.71,2.62]
[1755473437166,2.89,191.8,191.71,1.92121331]
[1755473437358,2.89,191.78,191.71,1.92121331]
[1755473437558,2.89,191.83,191.73,2.62]
[1755473437765,2.89,191.81,191.73,2.62]
[1755473438068,2.89,191.79,191.73,7.8324]
[1755473438271,2.89,191.77,191.73,5.2124]
[1755473438469,2.89,191.77,191.74,2.62]
[1755473438670,2.89,191.77,191.71,1.92121331]
[1755473438965,2.89,191.77,191.73,2.62]
[1755473439271,2.89,191.77,191.72,2.62]
[1755473439463,2.89,191.77,191.71,1.92121331]
[1755473439663,2.89,191.77,191.72,2.62]
[1755473440374,2.89,191.77,191.73,2.62]
[1755473440963,2.89,191.77,191.74,2.62]
[1755473441162,2.89,191.77,191.72,2.62]
[1755473441574,2.89,191.76,191.73,2.62]
[1755473442276,2.89,191.75,191.73,2.62]
[1755473443377,2.89,191.75,191.72,5.2126]
[1755473443573,2.89,191.75,191.74,2.62]
[1755473447778,2.96,191.84,191.72,2.62]
[1755473448077,2.96,191.82,191.72,2.62]
[1755473448277,2.96,191.8,191.73,2.62]
[1755473448471,2.96,191.78,191.71,1.92121331]
[1755473448677,2.96,191.84,191.74,2.62]
[1755473448880,2.96,191.82,191.74,2.62]
[1755473449081,2.96,191.8,191.74,2.62]
[1755473450485,2.96,191.78,191.7,4.54121331]
[1755473450679,3.77321977,191.77,191.7,1.92121331]
[1755473450984,2.96,191.78,191.68,2.62]
[1755473451179,2.96,191.76,191.65,115.03019245]
[1755473451482,2.96,191.74,191.66,2.62]
[1755473452383,2.96,191.74,191.66,7.8344]
[1755473452580,2.96,191.74,191.67,1.92121331]
[1755473452786,2.96,191.74,191.68,2.62]
[1755473453680,2.96,191.74,191.66,2.62]
[1755473453881,2.96,191.72,191.66,2.62]
[1755473454482,3.77541016,191.71,191.66,2.62]
[1755473454682,2.96,191.7,191.66,2.62]
[1755473455085,2.96,191.7,191.61,1.92121331]
[1755473455379,2.96,191.7,191.62,2.62]
[1755473455581,2.96,191.68,191.62,2.62]
[1755473460284,2.96,191.68,191.61,1.92121331]
[1755473460588,2.96,191.68,191.61,4.54121331]
[1755473460785,2.96,191.68,191.61,1.92121331]
[1755473460986,2.96,191.68,191.62,2.62]
[1755473461186,2.96,191.68,191.61,1.92121331]
[1755473461589,2.96,191.68,191.61,4.54121331]
[1755473462592,3.77230186,191.67,191.59,2.62]
[1755473462787,6.73159389,191.66,191.59,2.62]
[1755473462986,2.96,191.66,191.59,2.62]
[1755473463389,2.96,191.66,191.59,5.2161]
[1755473463590,2.96,191.66,191.6,2.62]
[1755473463991,2.96,191.66,191.61,2.62]
[1755473464186,2.96,191.65,191.61,4.54121331]
[1755473464391,2.96,191.67,191.61,1.92121331]
[1755473464590,2.96,191.72,191.63,2.62]
[1755473464791,2.96,191.7,191.63,2.62]
[1755473465495,2.96,191.68,191.63,2.62]
[1755473468301,2.96,191.68,191.61,1.92121331]
[1755473468500,2.96,191.68,191.64,2.62]
[1755473468695,2.96,191.68,191.65,2.62]
[1755473468891,2.96,191.68,191.61,1.92121331]
[1755473469095,2.96,191.68,191.62,2.62]
[1755473470192,2.96,191.68,191.62,5.2154]
[1755473470393,2.96,191.67,191.63,2.62]
[1755473470792,1.92121331,191.76,191.63,2.62]
[1755473470996,7.898844,191.75,191.65,2.84]
[1755473471302,3.76722564,191.74,191.65,2.84]
[1755473471498,3.76722564,191.73,191.65,2.84]
[1755473471698,3.76722564,191.72,191.65,2.84]
[1755473471899,1.92121331,191.76,191.65,2.84]
[1755473472197,7.86407594,191.75,191.65,2.84]
[1755473472397,7.86407594,191.74,191.65,2.84]
[1755473472598,3.73292008,191.73,191.65,2.84]
[1755473472797,3.73292008,191.72,191.65,2.84]
[1755473473002,2.96,191.71,191.65,2.84]
[1755473478601,2.96,191.71,191.63,2.93]
[1755473478800,2.96,191.69,191.61,2.93]
[1755473480500,2.96,191.69,191.57,7.13801331]
[1755473480705,2.96,191.69,191.58,2.93]
[1755473481607,3.7306626,191.68,191.58,2.93]
[1755473481797,2.96,191.67,191.58,2.93]
[1755473484804,2.96,191.67,191.59,2.93]
[1755473486105,2.96,191.67,191.6,2.93]
[1755473486401,2.96,191.67,191.6,4.85121331]
[1755473486607,2.96,191.67,191.61,2.93]
[1755473492609,2.96,191.73,191.65,2.93]
[1755473492914,2.96,191.71,191.65,2.93]
[1755473494012,2.96,191.71,191.65,5.2147]
[1755473494310,2.96,191.7,191.66,2.93]
[1755473494910,2.96,191.75,191.66,2.93]
[1755473495108,2.96,191.73,191.66,2.93]
[1755473495312,2.96,191.71,191.66,2.93]
[1755473495516,2.96,191.69,191.66,2.93]
[1755473496413,2.96,191.7,191.66,2.93]
[1755473497214,1.92121331,191.77,191.66,8.1444]
[1755473497420,2.96,191.68,191.66,2.93]
[1755473499714,1.92121331,191.77,191.64,1.92121331]
[1755473499918,2.96,191.75,191.65,2.93]
[1755473500119,2.96,191.73,191.59,2.93]
[1755473500314,2.96,191.7,191.59,2.93]
[1755473500616,2.96,191.68,191.59,2.93]
[1755473500815,2.96,191.66,191.59,2.93]
[1755473505624,3.75639212,191.65,191.59,2.93]
[1755473505822,2.96,191.66,191.59,5.2164]
[1755473506022,2.96,191.64,191.6,2.93]
[1755473506323,2.96,191.63,191.6,2.93]
[1755473507020,2.96,191.62,191.6,2.93]
[1755473507722,2.9,191.7,191.59,3.07]
[1755473507921,7.8992877,191.69,191.59,3.07]
[1755473508121,2.9,191.67,191.59,3.07]
[1755473508323,3.75664061,191.66,191.59,3.07]
[1755473508525,2.9,191.64,191.59,3.07]
[1755473510629,2.9,191.64,191.58,109.26070294]
[1755473511223,2.9,191.64,191.61,3.07]
[1755473512128,2.9,191.64,191.58,109.26070294]
[1755473512321,2.9,191.64,191.62,3.07]
[1755473513627,1.92121331,191.71,191.58,102.12288963]
[1755473513927,2.9,191.69,191.59,3.07]
[1755473514226,2.9,191.67,191.59,3.07]
[1755473514426,2.9,191.65,191.59,3.07]
[1755473515729,3.7543414,191.64,191.59,3.07]
[1755473515930,2.9,191.63,191.59,3.07]
[1755473517715,2.9,191.63,191.55,5.2174]
[1755473517927,3.75391662,191.62,191.54,1.92121331]
[1755473518131,2.9,191.64,191.55,3.07]
[1755473518334,2.9,191.62,191.55,3.07]
[1755473518629,2.9,191.6,191.55,3.07]
[1755473518928,2.9,191.64,191.55,3.07]
[1755473519121,4.82121331,191.62,191.55,3.07]
[1755473519328,2.9,191.6,191.55,3.07]
[1755473519527,3.75305335,191.59,191.55,3.07]
[1755473519733,2.9,191.58,191.55,3.07]
[1755473520332,2.9,191.58,191.51,3.07]
[1755473520832,2.9,191.65,191.54,3.07]
[1755473521029,2.9,191.63,191.54,3.07]
[1755473521229,2.9,191.61,191.54,3.07]
[1755473521429,3.75185079,191.6,191.54,3.07]
[1755473521626,2.9,191.58,191.54,3.07]
[1755473522221,2.9,191.58,191.52,3.07]
[1755473523137,2.9,191.58,191.53,3.07]
[1755473523336,2.9,191.57,191.53,3.07]
[1755473523630,1.92121331,191.64,191.53,3.07]
[1755473523839,2.9,191.62,191.54,3.07]
[1755473524128,2.9,191.6,191.54,3.07]
[1755473525042,3.74511462,191.59,191.54,3.07]
[1755473525243,2.9,191.6,191.54,3.07]
[1755473528138,2.9,191.6,191.55,3.07]
[1755473529942,2.9,191.64,191.55,8.2873]
[1755473530135,2.9,191.62,191.56,3.07]
[1755473532445,3.74778349,191.61,191.56,3.07]
[1755473532636,2.9,191.62,191.56,3.07]
[1755473532841,2.9,191.6,191.57,3.07]
[1755473533036,2.9,191.6,191.54,3.07]
[1755473533443,2.9,191.64,191.54,3.07]
[1755473534044,2.9,191.64,191.55,5.2173]
[1755473534350,2.9,191.64,191.56,3.07]
[1755473534650,2.9,191.64,191.57,3.07]
[1755473535446,2.9,191.64,191.57,5.2169]
[1755473535652,2.9,191.64,191.58,3.07]
[1755473535850,2.9,191.64,191.59,1.92121331]
[1755473536151,2.9,191.64,191.6,3.07]
[1755473537753,2.93,191.66,191.6,3.07]
[1755473544958,2.93,191.66,191.51,10.67815104]
[1755473544959,2.93,191.65,191.63,3.07]
[1755473545158,2.93,191.67,191.63,3.07]
[1755473545458,2.93,191.66,191.63,3.07]
[1755473545660,2.93,191.71,191.63,3.07]
[1755473545860,2.93,191.69,191.63,3.07]
[1755473548858,356.27381032,191.77,191.65,1.92121331]
[1755473549054,2.93,191.75,191.66,3.07]
[1755473549255,350.52,191.77,191.66,3.07]
[1755473549256,2.93,191.73,191.66,3.07]
[1755473549453,2.93,191.71,191.66,3.07]
[1755473551756,2.93,191.7,191.66,3.07]
[1755473552161,2.93,191.69,191.66,3.07]
[1755473555358,2.93,191.76,191.58,70.4496621]
[1755473555553,350.52,191.77,191.63,3.07]
[1755473555554,2.93,191.74,191.63,3.07]
[1755473555758,9.78784338,191.75,191.63,3.07]
[1755473555759,7.86623751,191.73,191.63,3.07]
[1755473556062,2.93,191.71,191.63,3.07]
[1755473557552,2.93,191.69,191.63,3.07]
[1755473560268,2.93,191.69,191.65,1.92121331]
[1755473560469,2.93,191.76,191.66,8.2843]
[1755473560669,2.93,191.74,191.67,3.07]
[1755473563067,2.93,191.74,191.68,3.07]
[1755473563267,2.93,191.74,191.69,3.07]
[1755473563663,2.93,191.74,191.7,3.07]
[1755473564871,2.93,191.74,191.68,1.92121331]
[1755473565169,2.93,191.74,191.69,3.07]
[1755473566164,2.93,191.74,191.68,3.07]
[1755473566371,2.93,191.74,191.68,5.2139]
[1755473566572,2.93,191.74,191.69,3.07]
[1755473569473,2.93,191.74,191.68,5.2139]
[1755473569674,2.93,191.74,191.7,3.0]
[1755473570559,2.93,191.74,191.71,3.0]
[1755473570760,2.96,191.78,191.68,3.0]
[1755473571061,2.96,191.76,191.71,3.0]
[1755473572474,2.96,191.76,191.72,3.0]
[1755473573669,2.96,191.76,191.7,1.92121331]
[1755473573873,2.96,191.76,191.73,3.0]
[1755473574770,2.96,191.75,191.71,3.0]
[1755473574973,2.96,191.77,191.71,3.0]
[1755473575571,2.96,191.77,191.71,5.2129]
[1755473575771,2.96,191.8,191.72,3.0]
[1755473575968,2.96,191.8,191.7,1.92121331]